bitfinex-derivatives/quotes_BTCF0:USTF0_20241117
["timestamp","ask_amount","ask_price","bid_price","bid_amount"]
[1731865963715,0.10899597,90615.0,90614.0,0.001514]
[1731865963907,0.25402059,90615.0,90614.0,0.001514]
[1731865964415,0.38737136,90615.0,90614.0,0.001514]
[1731865964909,0.38737136,90615.0,90614.0,0.00049016]
[1731865965111,0.38737136,90615.0,90609.0,0.417379]
[1731865965112,0.33219636,90615.0,90609.0,0.417379]
[1731865965324,0.05529122,90610.0,90609.0,0.415979]
[1731865965501,0.22339609,90610.0,90609.0,0.415979]
[1731865966111,0.22339609,90610.0,90609.0,0.055179]
[1731865967516,0.16810487,90610.0,90609.0,0.055179]
[1731865967710,0.16810487,90610.0,90606.0,0.055181]
[1731865967909,0.16810487,90609.0,90608.0,0.055179]
[1731865968105,0.05368025,90609.0,90608.0,0.055179]
[1731865968314,0.05367949,90614.0,90605.0,0.41749122]
[1731865968508,0.19859558,90608.0,90605.0,0.3608]
[1731865968712,0.19859558,90608.0,90607.0,0.05518]
[1731865968911,0.05367949,90608.0,90605.0,0.3608]
[1731865969117,0.05367949,90607.0,90606.0,0.055181]
[1731865969318,0.05367949,90607.0,90605.0,0.3608]
[1731865969518,0.19859558,90610.0,90609.0,0.055179]
[1731865969720,0.19859558,90610.0,90609.0,0.141059]
[1731865970016,0.00014072,90615.0,90614.0,0.055176]
[1731865970320,0.00014072,90615.0,90614.0,0.415976]
[1731865970715,0.00014072,90615.0,90614.0,0.480476]
[1731865975623,0.00014072,90615.0,90614.0,0.415976]
[1731865977421,0.00014072,90615.0,90614.0,0.67992604]
[1731865977623,0.00014072,90615.0,90614.0,0.415976]
[1731865978127,0.16878165,90615.0,90614.0,0.45651192]
[1731865978432,0.05381879,90615.0,90614.0,0.45651192]
[1731865978618,0.00014072,90615.0,90614.0,0.45651192]
[1731865978934,7e-07,90620.0,90614.0,1.14277353]
[1731865979133,0.00675565,90638.0,90622.0,0.05529122]
[1731865979332,0.00675565,90638.0,90628.0,0.055167]
[1731865979333,0.1322299,90629.0,90628.0,0.055167]
[1731865979627,0.00165565,90638.0,90624.0,0.3608]
[1731865979628,0.1322299,90633.0,90632.0,0.055165]
[1731865979927,0.0051,90652.0,90651.0,0.055153]
[1731865980135,8.003e-05,90658.0,90654.0,0.05529122]
[1731865980321,0.05515,90656.0,90655.0,0.055151]
[1731865980523,0.055152,90653.0,90650.0,0.055154]
[1731865980816,0.0301,90655.0,90649.0,0.08588]
[1731865981022,0.055155,90649.0,90647.0,0.055156]
[1731865982131,0.033,90652.0,90651.0,0.055153]
[1731865984232,0.033,90652.0,90646.0,0.08584]
[1731865984531,0.055154,90650.0,90646.0,0.140996]
[1731865985432,0.055154,90650.0,90647.0,0.055156]
[1731865987221,0.0333,90651.0,90640.0,0.40111473]
[1731865987422,0.0333,90651.0,90641.0,0.055159]
[1731865987622,0.055158,90644.0,90640.0,0.3608]
[1731865987824,0.055159,90642.0,90636.0,0.141002]
[1731865988033,0.055159,90642.0,90636.0,0.055162]
[1731865988425,0.055159,90642.0,90636.0,0.09426117]
[1731865988630,0.055159,90642.0,90636.0,0.055162]
[1731865990739,0.055159,90642.0,90632.0,0.00174242]
[1731865990740,0.08416567,90647.0,90639.0,0.05516]
[1731865990936,0.13932167,90647.0,90639.0,0.05516]
[1731865991437,0.13932167,90647.0,90632.0,0.00174242]
[1731865991637,0.13932167,90647.0,90642.0,0.055158]
[1731865992241,0.055154,90650.0,90642.0,0.055158]
[1731865992432,0.07369794,90651.0,90632.0,0.00174242]
[1731865992433,0.0333,90651.0,90637.0,0.08416567]
[1731865992639,0.033,90652.0,90651.0,0.055153]
[1731865993540,0.0301,90655.0,90654.0,0.055152]
[1731865994131,8.003e-05,90658.0,90646.0,0.3608]
[1731865994336,8.003e-05,90658.0,90657.0,0.05515]
[1731866001135,0.05373567,90658.0,90657.0,0.05515]
[1731866001740,8.003e-05,90658.0,90657.0,0.05515]
[1731866002432,8.003e-05,90658.0,90646.0,0.3608]
[1731866002831,0.05373567,90658.0,90654.0,0.055151]
[1731866003043,8.003e-05,90658.0,90654.0,0.055151]
[1731866003248,0.3066025,90658.0,90654.0,0.055151]
[1731866003546,0.05365725,90657.0,90654.0,0.055151]
[1731866003844,0.05365725,90657.0,90649.0,0.055155]
[1731866003845,0.05365725,90656.0,90649.0,0.055155]
[1731866004047,0.05365725,90656.0,90650.0,0.055153]
[1731866004343,0.05365725,90656.0,90646.0,0.40020493]
[1731866004344,0.05365725,90655.0,90646.0,0.40020493]
[1731866004544,0.05365725,90654.0,90653.0,0.055152]
[1731866004751,0.05365725,90654.0,90646.0,0.40020493]
[1731866004752,0.055151,90655.0,90647.0,0.055156]
[1731866004951,0.055151,90655.0,90646.0,0.40020493]
[1731866004952,0.05365725,90654.0,90648.0,0.055155]
[1731866005250,0.05365725,90653.0,90649.0,0.055154]
[1731866005546,0.05365725,90652.0,90649.0,0.055154]
[1731866005848,0.05365725,90651.0,90649.0,0.055154]
[1731866006045,0.19771622,90656.0,90646.0,0.40020493]
[1731866006046,0.05365725,90654.0,90646.0,0.40020493]
[1731866006243,0.19771622,90654.0,90650.0,0.055153]
[1731866007243,0.19771622,90652.0,90650.0,0.055153]
[1731866007850,0.25137482,90651.0,90650.0,0.055153]
[1731866008348,0.05522903,90658.0,90650.0,0.055153]
[1731866008547,8.003e-05,90658.0,90652.0,0.1976336]
[1731866008754,0.055152,90653.0,90652.0,0.1976336]
[1731866009048,0.055152,90653.0,90651.0,0.1976336]
[1731866009451,0.055152,90653.0,90652.0,0.1976336]
[1731866009742,0.36088003,90658.0,90644.0,0.055158]
[1731866009743,0.055153,90652.0,90648.0,0.1976336]
[1731866010849,0.055153,90652.0,90649.0,0.1976336]
[1731866012547,0.08416567,90654.0,90647.0,0.1976336]
[1731866012850,0.055156,90646.0,90643.0,0.1976336]
[1731866013046,0.055157,90645.0,90643.0,0.1976336]
[1731866013348,0.055157,90645.0,90642.0,0.1976336]
[1731866013553,0.055154,90651.0,90642.0,0.1976336]
[1731866013852,0.055155,90649.0,90642.0,0.1976336]
[1731866014035,0.055155,90648.0,90642.0,0.1976336]
[1731866015057,0.055155,90648.0,90643.0,0.1976336]
[1731866015358,0.055155,90648.0,90642.0,0.1976336]
[1731866015663,0.055155,90648.0,90643.0,0.1976336]
[1731866016038,0.16531212,90653.0,90643.0,0.1976336]
[1731866016252,0.16531212,90655.0,90652.0,0.055153]
[1731866016552,0.16531212,90656.0,90652.0,0.055153]
[1731866017051,0.16531212,90657.0,90652.0,0.055153]
[1731866017758,0.22054115,90658.0,90653.0,0.055152]
[1731866017949,0.05522903,90658.0,90653.0,0.055152]
[1731866018140,0.05522903,90658.0,90649.0,0.1976336]
[1731866018339,0.05522903,90658.0,90654.0,0.055151]
[1731866020251,0.05522903,90658.0,90655.0,0.055151]
[1731866021551,0.16531212,90657.0,90655.0,0.055151]
[1731866021945,0.16531212,90656.0,90655.0,0.055151]
[1731866022146,0.16531212,90657.0,90655.0,0.055151]
[1731866022356,0.16531212,90656.0,90655.0,0.055151]
[1731866023255,0.31956898,90658.0,90655.0,0.055151]
[1731866023461,0.26660662,90657.0,90655.0,0.055151]
[1731866025562,0.15219735,90656.0,90655.0,0.055151]
[1731866025749,0.38379305,90657.0,90655.0,0.055151]
[1731866025954,0.15219735,90656.0,90655.0,0.055151]
[1731866026145,0.09853975,90656.0,90655.0,0.055151]
[1731866026355,0.2315957,90656.0,90655.0,0.055151]
[1731866026557,0.15219735,90656.0,90655.0,0.055151]
[1731866026759,0.15219735,90656.0,90649.0,0.03916828]
[1731866026964,0.15219735,90655.0,90650.0,0.055154]
[1731866027259,0.15219735,90654.0,90653.0,0.055152]
[1731866027557,0.38379305,90656.0,90646.0,0.12674925]
[1731866027755,0.05531996,90658.0,90646.0,0.12674925]
[1731866027756,0.26663038,90655.0,90654.0,0.055152]
[1731866027961,0.38379981,90655.0,90646.0,0.12674925]
[1731866028158,0.23160246,90655.0,90654.0,0.055152]
[1731866028347,0.33016277,90655.0,90654.0,0.055152]
[1731866028554,0.38382004,90655.0,90654.0,0.055152]
[1731866028757,0.33016277,90655.0,90654.0,0.055152]
[1731866029066,0.15221758,90655.0,90646.0,0.12674925]
[1731866029361,0.15221758,90654.0,90653.0,0.055152]
[1731866029757,0.09856031,90654.0,90653.0,0.055152]
[1731866030951,0.15221758,90657.0,90646.0,0.12674925]
[1731866031166,0.19852604,90647.0,90646.0,0.12674925]
[1731866031564,0.05365717,90647.0,90646.0,0.18190525]
[1731866031759,0.05522903,90658.0,90656.0,0.05515]
[1731866031955,0.15261056,90657.0,90656.0,0.05515]
[1731866032263,0.15261003,90657.0,90653.0,0.05523993]
[1731866032462,0.15261003,90656.0,90655.0,0.055151]
[1731866032664,0.05365704,90656.0,90655.0,0.055151]
[1731866032961,8.003e-05,90658.0,90655.0,0.055151]
[1731866032962,8.003e-05,90658.0,90657.0,0.05515]
[1731866035061,0.0537343,90658.0,90657.0,0.05515]
[1731866035758,8.003e-05,90658.0,90657.0,0.05515]
[1731866037973,0.09884709,90658.0,90657.0,0.05515]
[1731866038463,8.003e-05,90658.0,90657.0,0.05515]
[1731866039977,8.003e-05,90658.0,90657.0,0.09411861]
[1731866041768,0.13233065,90658.0,90657.0,0.09411861]
[1731866041968,8.003e-05,90658.0,90657.0,0.09411861]
[1731866042174,0.13232954,90658.0,90657.0,0.09411861]
[1731866042367,8.003e-05,90658.0,90657.0,0.09411861]
[1731866042968,8.003e-05,90658.0,90657.0,0.05515]
[1731866043186,0.05522903,90658.0,90657.0,0.05515]
[1731866043472,8.003e-05,90658.0,90657.0,0.05515]
[1731866047266,0.00413655,90658.0,90657.0,0.05515]
[1731866048266,0.00413655,90658.0,90657.0,0.2527836]
[1731866048472,0.00413655,90658.0,90657.0,0.05515]
[1731866053477,0.05778896,90658.0,90657.0,0.05515]
[1731866053690,0.1039314,90658.0,90657.0,0.05515]
[1731866053985,0.00413655,90658.0,90657.0,0.05515]
[1731866054195,0.38918627,90658.0,90657.0,0.05515]
[1731866054381,0.15758381,90658.0,90657.0,0.05515]
[1731866055090,0.00413655,90658.0,90657.0,0.05515]
[1731866055290,0.1619228,90658.0,90657.0,0.05515]
[1731866055588,0.1619228,90658.0,90657.0,0.14071]
[1731866060396,0.00413655,90658.0,90657.0,0.14071]
[1731866061300,0.00413655,90658.0,90657.0,0.47077572]
[1731866061503,0.00413655,90658.0,90657.0,0.86500447]
[1731866061881,0.00413655,90658.0,90657.0,0.47077572]
[1731866062279,0.00413655,90658.0,90657.0,0.14071]
[1731866062481,0.00413655,90658.0,90657.0,0.47077572]
[1731866062682,0.00413655,90658.0,90657.0,0.86858216]
[1731866063288,0.00413655,90658.0,90657.0,0.47077572]
[1731866063485,0.055142,90670.0,90669.0,0.055142]
[1731866064491,0.05525752,90670.0,90669.0,0.055142]
[1731866065683,0.05525752,90670.0,90664.0,0.055145]
[1731866065684,0.055145,90665.0,90664.0,0.055145]
[1731866067799,0.05525752,90670.0,90663.0,0.05523993]
[1731866068094,0.05525752,90670.0,90667.0,0.26337844]
[1731866068296,0.055143,90668.0,90667.0,0.26337844]
[1731866068987,0.00011552,90670.0,90667.0,0.26337844]
[1731866069195,0.00011552,90670.0,90668.0,0.05523993]
[1731866070598,0.00011552,90670.0,90668.0,0.31861837]
[1731866070793,0.055142,90669.0,90668.0,0.31861837]
[1731866072726,0.055142,90669.0,90668.0,0.05523993]
[1731866073091,0.055142,90669.0,90668.0,0.31861837]
[1731866073794,0.055142,90669.0,90668.0,0.26337844]
[1731866074002,0.00011552,90670.0,90667.0,0.26337844]
[1731866074188,0.055143,90668.0,90667.0,0.26337844]
[1731866074492,0.055143,90668.0,90662.0,0.4395892]
[1731866074693,0.055145,90666.0,90663.0,0.32920227]
[1731866074895,0.055145,90665.0,90663.0,0.32920227]
[1731866075191,0.055145,90665.0,90663.0,0.3844422]
[1731866075390,0.055145,90665.0,90664.0,0.055145]
[1731866075787,0.19846418,90668.0,90663.0,0.05523993]
[1731866076191,0.19846418,90668.0,90667.0,0.055144]
[1731866077597,0.19846418,90669.0,90667.0,0.055144]
[1731866077800,0.19846418,90669.0,90668.0,0.05523993]
[1731866078495,0.1984975,90669.0,90668.0,0.05523993]
[1731866078702,0.1984975,90669.0,90668.0,0.11038293]
[1731866079102,0.00011552,90670.0,90669.0,0.055142]
[1731866079103,0.19861302,90670.0,90669.0,0.055142]
[1731866079496,0.19861769,90670.0,90669.0,0.055142]
[1731866079693,0.00011552,90670.0,90669.0,0.055142]
[1731866083508,0.00011552,90670.0,90669.0,0.50632657]
[1731866085910,0.00011552,90670.0,90669.0,0.055142]
[1731866086099,0.00011552,90670.0,90669.0,0.50613188]
[1731866089110,0.00011552,90670.0,90669.0,0.90151581]
[1731866089299,0.00011552,90670.0,90669.0,0.50613188]
[1731866090501,0.00011552,90670.0,90669.0,0.055142]
[1731866090911,0.00011552,90670.0,90669.0,0.140582]
[1731866091607,0.00011552,90670.0,90669.0,0.33814228]
[1731866091912,0.1323672,90670.0,90669.0,0.140582]
[1731866092319,0.1323449,90670.0,90669.0,0.33809481]
[1731866092903,0.1323851,90670.0,90669.0,0.33805299]
[1731866093205,0.00015572,90670.0,90669.0,0.33805036]
[1731866093907,0.00015572,90670.0,90669.0,0.69885036]
[1731866094114,0.00015572,90670.0,90669.0,0.501382]
[1731866094314,0.00015572,90670.0,90669.0,0.69875382]
[1731866094795,0.00015572,90670.0,90669.0,0.501382]
[1731866094996,0.00015572,90670.0,90669.0,0.69875382]
[1731866095220,0.00015572,90670.0,90669.0,0.501382]
[1731866095601,0.00015572,90670.0,90669.0,0.69872608]
[1731866096914,0.00015572,90670.0,90669.0,0.61328608]
[1731866097115,0.00015572,90670.0,90669.0,0.69872608]
[1731866097607,0.00015572,90670.0,90669.0,0.94706262]
[1731866098420,0.00015572,90670.0,90669.0,1.27794262]
[1731866099210,0.00015572,90670.0,90669.0,0.94706262]
[1731866099516,0.00015572,90670.0,90669.0,1.34218318]
[1731866099905,0.00015572,90670.0,90669.0,0.94706262]
[1731866100211,0.00829914,90690.0,90670.0,0.055141]
[1731866100516,0.055133,90684.0,90683.0,0.055132]
[1731866100917,0.055134,90682.0,90681.0,0.3608]
[1731866101106,0.055134,90682.0,90681.0,0.415935]
[1731866101310,0.055134,90682.0,90681.0,0.3608]
[1731866101803,0.055134,90682.0,90681.0,0.62375901]
[1731866102111,0.055134,90682.0,90681.0,0.3608]
[1731866102313,0.055134,90682.0,90681.0,0.62377001]
[1731866103120,0.055134,90682.0,90681.0,0.3608]
[1731866103414,0.055134,90682.0,90681.0,0.415935]
[1731866107621,0.055134,90682.0,90681.0,0.47117493]
[1731866108318,0.055134,90682.0,90681.0,0.41603993]
[1731866108510,0.055134,90682.0,90681.0,0.3608]
[1731866108711,0.055134,90682.0,90681.0,0.41603993]
[1731866111709,0.25334085,90682.0,90681.0,0.41603993]
[1731866112120,0.055134,90682.0,90681.0,0.41603993]
[1731866112317,0.055134,90682.0,90681.0,0.05523993]
[1731866113424,0.055134,90682.0,90681.0,0.31814173]
[1731866114817,0.00013916,90683.0,90681.0,0.31814173]
[1731866115021,0.00013916,90683.0,90682.0,0.055134]
[1731866115523,0.055134,90682.0,90681.0,0.31814173]
[1731866116211,0.055134,90682.0,90681.0,0.05523993]
[1731866118224,0.055134,90682.0,90678.0,0.055136]
[1731866118225,0.13238685,90683.0,90678.0,0.055136]
[1731866118421,0.13224769,90679.0,90673.0,0.32871251]
[1731866118630,0.00013916,90683.0,90668.0,0.08532]
[1731866118631,0.055139,90675.0,90674.0,0.05523993]
[1731866120728,0.10878482,90675.0,90674.0,0.05523993]
[1731866121927,0.05364582,90675.0,90663.0,0.19746492]
[1731866122121,0.0973,90678.0,90661.0,0.19746492]
[1731866122122,0.16543347,90665.0,90661.0,0.19746492]
[1731866122315,0.3608,90677.0,90659.0,0.19746492]
[1731866122316,0.055148,90660.0,90659.0,0.19746492]
[1731866122528,0.055149,90658.0,90657.0,0.19746492]
[1731866122824,0.055151,90655.0,90654.0,0.19750002]
[1731866123018,0.055151,90655.0,90651.0,0.19750002]
[1731866123019,0.2206734,90655.0,90651.0,0.19750002]
[1731866123213,0.2206734,90655.0,90647.0,0.55830002]
[1731866123214,0.16543347,90654.0,90647.0,0.55830002]
[1731866123528,0.055155,90648.0,90647.0,0.3608]
[1731866123727,0.16543347,90650.0,90647.0,0.41603993]
[1731866123920,0.05515,90656.0,90654.0,0.055152]
[1731866124124,0.05365854,90655.0,90654.0,0.055152]
[1731866124422,0.0301,90659.0,90657.0,0.05515]
[1731866124630,0.05365709,90658.0,90657.0,0.05515]
[1731866124814,0.16522317,90658.0,90657.0,0.05515]
[1731866125127,0.0301,90659.0,90658.0,0.055149]
[1731866125128,0.19527795,90659.0,90658.0,0.055149]
[1731866125621,0.0301,90659.0,90658.0,0.055149]
[1731866125824,0.25042595,90659.0,90658.0,0.055149]
[1731866126224,0.085248,90659.0,90658.0,0.055149]
[1731866126729,0.25042595,90659.0,90658.0,0.055149]
[1731866126919,0.085248,90659.0,90658.0,0.055149]
[1731866127518,0.085248,90659.0,90658.0,0.11038893]
[1731866127720,0.031,90664.0,90658.0,0.11038893]
[1731866127916,0.055148,90659.0,90658.0,0.11038893]
[1731866128920,0.055148,90659.0,90658.0,0.37340472]
[1731866129125,0.055148,90659.0,90658.0,0.11038893]
[1731866129325,0.055148,90659.0,90658.0,0.37340472]
[1731866130825,0.055148,90659.0,90658.0,0.11038893]
[1731866131025,0.055148,90659.0,90658.0,0.37340472]
[1731866131230,0.055145,90665.0,90658.0,0.05523993]
[1731866131423,0.055145,90665.0,90663.0,0.05523993]
[1731866132534,0.055145,90665.0,90663.0,0.25249051]
[1731866133423,0.055145,90665.0,90663.0,0.05523993]
[1731866133624,0.055145,90665.0,90663.0,0.25249051]
[1731866135035,0.055145,90665.0,90663.0,0.05523993]
[1731866139633,0.055145,90664.0,90663.0,0.05523993]
[1731866140246,0.055145,90664.0,90662.0,0.055146]
[1731866142728,0.16517795,90663.0,90662.0,0.055146]
[1731866143144,0.055145,90664.0,90662.0,0.055146]
[1731866143337,0.05365243,90663.0,90662.0,0.055146]
[1731866143642,0.04046605,90670.0,90658.0,0.05523993]
[1731866143643,0.055148,90659.0,90658.0,0.05523993]
[1731866143836,0.055148,90659.0,90658.0,0.11038893]
[1731866144438,0.16510021,90661.0,90658.0,0.05523993]
[1731866144635,0.05523993,90669.0,90658.0,0.05523993]
[1731866144636,0.16510021,90663.0,90658.0,0.05523993]
[1731866144835,0.16512107,90663.0,90662.0,0.05523993]
[1731866145042,0.19851786,90669.0,90663.0,0.055146]
[1731866145043,0.16512107,90664.0,90663.0,0.055146]
[1731866145244,0.05365156,90664.0,90663.0,0.087246]
[1731866145437,0.055146,90663.0,90662.0,0.05523993]
[1731866145644,0.055147,90662.0,90659.0,0.055148]
[1731866145843,0.22030349,90662.0,90660.0,0.055147]
[1731866146044,0.22030349,90662.0,90658.0,0.05523993]
[1731866146045,0.22030349,90662.0,90661.0,0.055147]
[1731866146244,0.055147,90662.0,90661.0,0.055147]
[1731866146637,0.1087996,90662.0,90661.0,0.055147]
[1731866146839,0.22034061,90662.0,90661.0,0.055147]
[1731866147239,0.10879863,90662.0,90661.0,0.055147]
[1731866147540,0.25366186,90667.0,90658.0,0.05523993]
[1731866147740,0.16523792,90661.0,90660.0,0.055148]
[1731866148147,0.16523792,90661.0,90657.0,0.08524]
[1731866148148,0.05365124,90661.0,90658.0,0.055149]
[1731866148354,0.16529478,90660.0,90659.0,0.055148]
[1731866149238,0.25366286,90665.0,90663.0,0.055146]
[1731866149436,0.1087963,90664.0,90663.0,0.055146]
[1731866150039,0.30731416,90664.0,90663.0,0.055146]
[1731866150644,0.055145,90664.0,90663.0,0.055146]
[1731866155738,0.055145,90664.0,90663.0,0.38385851]
[1731866155940,0.055145,90664.0,90663.0,0.055146]
[1731866156339,0.055145,90664.0,90663.0,0.38385851]
[1731866156738,0.055145,90664.0,90663.0,0.055146]
[1731866157545,0.055145,90664.0,90663.0,0.80706414]
[1731866157747,0.055145,90664.0,90663.0,0.38385851]
[1731866159658,0.055145,90664.0,90663.0,0.055146]
[1731866161059,0.13229097,90668.0,90661.0,0.32871251]
[1731866161256,0.04018867,90676.0,90661.0,0.055147]
[1731866161257,0.13229097,90667.0,90661.0,0.055147]
[1731866161444,0.055147,90662.0,90661.0,0.38385951]
[1731866161858,0.055147,90662.0,90661.0,0.055147]
[1731866162255,0.055147,90662.0,90661.0,0.38385951]
[1731866162553,0.055147,90662.0,90661.0,0.80653971]
[1731866162744,0.055147,90662.0,90661.0,0.38385951]
[1731866164263,0.055147,90662.0,90661.0,0.75152431]
[1731866164554,0.055147,90662.0,90657.0,0.08524]
[1731866164555,0.055147,90661.0,90660.0,0.32871251]
[1731866164943,0.087747,90661.0,90660.0,0.32871251]
[1731866165760,0.055149,90658.0,90657.0,0.08524]
[1731866166061,0.1088022,90658.0,90657.0,0.08524]
[1731866166763,0.1088022,90658.0,90656.0,0.3608]
[1731866166764,0.0536532,90658.0,90656.0,0.3608]
[1731866166955,0.0326,90661.0,90655.0,0.19757893]
[1731866166956,0.46969313,90657.0,90655.0,0.19757893]
[1731866167153,0.46969313,90657.0,90633.0,0.39445501]
[1731866167154,0.14039313,90656.0,90647.0,0.19760165]
[1731866167458,0.14039313,90656.0,90639.0,0.3608]
[1731866167459,0.05523993,90650.0,90639.0,0.3608]
[1731866167660,0.22067001,90641.0,90639.0,0.3608]
[1731866167860,0.16551101,90640.0,90639.0,0.3608]
[1731866168060,0.16551101,90643.0,90639.0,0.3608]
[1731866168251,0.05516,90641.0,90639.0,0.3608]
[1731866169067,0.16551101,90644.0,90640.0,0.05516]
[1731866169266,0.16551101,90644.0,90642.0,0.05523993]
[1731866169655,0.22066901,90644.0,90642.0,0.05523993]
[1731866170050,0.055158,90644.0,90642.0,0.05523993]
[1731866170272,0.055158,90644.0,90640.0,0.05516]
[1731866173769,0.055158,90644.0,90641.0,0.32871251]
[1731866174064,0.055158,90644.0,90640.0,0.05516]
[1731866174065,0.055158,90644.0,90640.0,0.38387251]
[1731866175061,0.055159,90641.0,90639.0,0.32871251]
[1731866175266,0.0313,90645.0,90637.0,0.32871251]
[1731866175267,0.055161,90639.0,90637.0,0.32871251]
[1731866175464,0.055161,90639.0,90632.0,8.757e-05]
[1731866175465,0.055164,90634.0,90632.0,8.757e-05]
[1731866175771,0.05523993,90638.0,90633.0,0.41482331]
[1731866175970,0.05523993,90638.0,90633.0,0.32860648]
[1731866176272,0.05523993,90638.0,90632.0,8.757e-05]
[1731866176273,0.055164,90634.0,90632.0,0.32869405]
[1731866176467,0.055164,90634.0,90632.0,0.36962584]
[1731866177169,0.055164,90634.0,90632.0,0.04101936]
[1731866177787,0.055164,90634.0,90632.0,8.757e-05]
[1731866177976,0.05523993,90633.0,90632.0,8.757e-05]
[1731866178159,0.11040393,90633.0,90632.0,8.757e-05]
[1731866180267,0.055164,90633.0,90632.0,8.757e-05]
[1731866182373,0.11040393,90633.0,90632.0,8.757e-05]
[1731866184865,0.0318,90641.0,90632.0,8.757e-05]
[1731866185065,0.02208207,90666.0,90639.0,0.3608]
[1731866185066,0.54813892,90647.0,90639.0,0.3608]
[1731866185266,0.055156,90646.0,90643.0,0.055158]
[1731866186069,0.3608,90647.0,90643.0,0.055158]
[1731866186569,0.055158,90644.0,90643.0,0.055158]
[1731866187778,0.055158,90644.0,90642.0,0.05523993]
[1731866188571,0.055158,90644.0,90643.0,0.055158]
[1731866188978,0.03910993,90655.0,90642.0,0.05523993]
[1731866189181,0.055158,90643.0,90642.0,0.05523993]
[1731866189880,0.12662796,90656.0,90637.0,0.3608]
[1731866189881,0.41603993,90647.0,90638.0,0.26267509]
[1731866190177,0.055159,90641.0,90640.0,0.19713831]
[1731866190377,0.055161,90639.0,90638.0,0.19713831]
[1731866191182,0.055161,90638.0,90637.0,0.19713831]
[1731866191570,0.055161,90638.0,90631.0,0.26267509]
[1731866191571,0.055164,90633.0,90631.0,0.26267509]
[1731866191778,0.11040393,90633.0,90630.0,0.19724815]
[1731866191969,0.11040393,90633.0,90626.0,0.19724815]
[1731866192366,0.19565795,90633.0,90625.0,0.19724815]
[1731866192568,0.47141802,90633.0,90625.0,0.19724815]
[1731866192771,0.52665795,90633.0,90625.0,0.19724815]
[1731866192982,0.52665795,90633.0,90626.0,0.19724815]
[1731866193371,0.19565795,90633.0,90626.0,0.19724815]
[1731866193780,0.19565795,90633.0,90625.0,0.19724815]
[1731866194083,0.19565795,90633.0,90626.0,0.19724815]
[1731866194285,0.2246555,90633.0,90627.0,0.19724815]
[1731866194783,0.2246555,90633.0,90626.0,0.19724815]
[1731866195077,0.5556555,90633.0,90627.0,0.19724815]
[1731866195467,0.5556555,90633.0,90626.0,0.19724815]
[1731866195778,0.60933378,90633.0,90619.0,0.0014]
[1731866195985,0.60933378,90633.0,90616.0,0.0051]
[1731866197478,0.60933451,90633.0,90616.0,0.0051]
[1731866197986,0.60933451,90633.0,90618.0,0.055173]
[1731866198382,0.60933451,90633.0,90619.0,0.055173]
[1731866199175,0.27833451,90633.0,90619.0,0.055173]
[1731866200874,0.19409703,90633.0,90619.0,0.055173]
[1731866201282,0.19409703,90633.0,90620.0,0.055172]
[1731866202387,0.19409457,90633.0,90620.0,0.055172]
[1731866203980,0.05525802,90633.0,90627.0,0.19724815]
[1731866204184,0.14029802,90633.0,90627.0,0.19724815]
[1731866205184,0.14029802,90633.0,90628.0,0.19724815]
[1731866205486,0.14029802,90633.0,90625.0,0.19724815]
[1731866205684,0.14029802,90633.0,90616.0,0.33370648]
[1731866205685,0.14029802,90633.0,90623.0,0.19724815]
[1731866205892,0.14029802,90633.0,90622.0,0.19724815]
[1731866206078,0.14029802,90633.0,90625.0,0.19724815]
[1731866206486,0.14029802,90633.0,90626.0,0.19724815]
[1731866206881,0.14029802,90633.0,90625.0,0.19724815]
[1731866207513,9.402e-05,90633.0,90625.0,0.19724815]
[1731866207805,9.402e-05,90633.0,90632.0,0.25250072]
[1731866208191,9.402e-05,90633.0,90632.0,0.05525257]
[1731866212998,9.402e-05,90633.0,90632.0,8.757e-05]
[1731866213294,0.05525802,90633.0,90632.0,8.757e-05]
[1731866213491,0.22041436,90633.0,90632.0,8.757e-05]
[1731866213993,0.22045832,90633.0,90632.0,8.757e-05]
[1731866214190,0.22046292,90633.0,90632.0,8.757e-05]
[1731866214393,0.05525802,90633.0,90632.0,8.757e-05]
[1731866214690,0.22046221,90633.0,90632.0,8.757e-05]
[1731866215098,0.05525802,90633.0,90632.0,8.757e-05]
[1731866215321,0.10893177,90633.0,90632.0,8.757e-05]
[1731866216286,0.30754498,90633.0,90632.0,8.757e-05]
[1731866216999,0.10893177,90633.0,90632.0,8.757e-05]
[1731866217298,0.10893479,90633.0,90632.0,8.757e-05]
[1731866218183,0.20122391,90633.0,90632.0,8.757e-05]
[1731866218590,0.055174,90617.0,90616.0,0.0051]
[1731866218901,0.44584,90617.0,90616.0,0.19757524]
[1731866219595,0.44584,90617.0,90614.0,0.19757524]
[1731866219789,0.055176,90613.0,90612.0,0.19757524]
[1731866220100,0.055177,90612.0,90611.0,0.19757524]
[1731866220301,0.055179,90609.0,90608.0,0.26267509]
[1731866220896,0.055179,90608.0,90607.0,0.26267509]
[1731866221195,0.055182,90604.0,90603.0,0.32860648]
[1731866221397,0.055183,90603.0,90602.0,0.32860648]
[1731866221600,0.08423748,90613.0,90601.0,0.32860648]
[1731866221796,0.055183,90602.0,90601.0,0.32860648]
[1731866222005,0.055183,90602.0,90601.0,0.74198738]
[1731866222300,0.055183,90602.0,90601.0,0.32860648]
[1731866222504,0.055183,90602.0,90600.0,0.32860648]
[1731866223296,0.08423748,90613.0,90601.0,0.41345083]
[1731866223490,0.055179,90609.0,90603.0,0.055182]
[1731866223804,0.05518,90608.0,90604.0,0.0309]
[1731866224205,0.05518,90607.0,90604.0,0.0309]
[1731866224409,0.08508,90612.0,90604.0,0.0309]
[1731866224595,0.055181,90606.0,90604.0,0.0309]
[1731866224907,0.055181,90605.0,90604.0,0.0309]
[1731866225997,0.055181,90605.0,90604.0,0.77331662]
[1731866226394,0.055178,90611.0,90604.0,0.44406828]
[1731866226591,0.055178,90611.0,90610.0,0.055178]
[1731866226795,0.08423748,90620.0,90608.0,0.32900055]
[1731866227004,0.08423748,90620.0,90616.0,0.26318724]
[1731866227307,0.055174,90617.0,90616.0,0.26318724]
[1731866227507,0.08423748,90618.0,90609.0,0.32900055]
[1731866227704,0.13941048,90618.0,90617.0,0.26317019]
[1731866229300,0.055174,90617.0,90616.0,0.26317019]
[1731866229505,0.055176,90614.0,90608.0,0.38417955]
[1731866230904,0.055176,90614.0,90609.0,0.32900055]
[1731866231106,0.08423748,90618.0,90608.0,0.38417955]
[1731866231405,0.055174,90617.0,90616.0,0.26314461]
[1731866234102,0.055176,90615.0,90609.0,0.086778]
[1731866234311,0.055176,90614.0,90609.0,0.086778]
[1731866234507,0.055176,90613.0,90609.0,0.086778]